fUST/lending_fUST_20240822
["ID","MTS","AMOUNT","RATE_DAILY","PERIOD"]
[335553309,1724324226468,-500.0,0.00019726,7]
[335553310,1724324226493,-500.0,0.00019726,7]
[335553311,1724324226521,-500.0,0.00019726,7]
[335553312,1724324226547,-500.0,0.00019726,7]
[335553313,1724324226574,-500.0,0.00019726,7]
[335553314,1724324226600,-500.0,0.00019726,7]
[335553315,1724324226630,-1808.0,0.00019726,7]
[335553316,1724324226658,-525.71511444,0.00019726,7]
[335553317,1724324226686,-500.0,0.00019726,7]
[335553318,1724324226712,-500.0,0.00019726,7]
[335553319,1724324226736,-500.0,0.00019726,7]
[335553320,1724324226772,-500.0,0.00019726,7]
[335553321,1724324226801,-503.8,0.00019726,7]
[335553322,1724324226828,-500.0,0.00019726,7]
[335553323,1724324226856,-500.0,0.00019726,7]
[335553324,1724324226885,-500.0,0.00019726,7]
[335553325,1724324226912,-500.0,0.00019726,7]
[335553326,1724324226938,-556.37454685,0.00019726,7]
[335553327,1724324226964,-500.0,0.00019726,7]
[335553328,1724324226990,-500.0,0.00019726,7]
[335553329,1724324227015,-500.0,0.00019726,7]
[335553330,1724324227040,-500.0,0.00019726,7]
[335553331,1724324227066,-500.0,0.00019726,7]
[335553332,1724324227092,-500.0,0.00019726,7]
[335553333,1724324227117,-569.65,0.00019726,7]
[335553334,1724324227143,-500.0,0.00019726,7]
[335553335,1724324227170,-500.0,0.00019726,7]
[335553336,1724324227198,-590.42,0.00019726,7]
[335553337,1724324227225,-1688.06,0.00019726,7]
[335553338,1724324227251,-500.0,0.00019726,7]
[335553339,1724324227277,-500.0,0.00019726,7]
[335553340,1724324227308,-500.0,0.00019726,7]
[335553341,1724324227336,-500.0,0.00019726,7]
[335553342,1724324227365,-500.0,0.00019726,7]
[335553343,1724324227393,-666.47,0.00019726,7]
[335553344,1724324227419,-500.0,0.00019726,7]
[335553345,1724324227445,-500.0,0.00019726,7]
[335553346,1724324227472,-1414.31,0.00019726,7]
[335553347,1724324227497,-522.76199597,0.00019726,7]
[335553348,1724324227525,-8750.01,0.00019726,7]
[335553349,1724324227552,-500.0,0.00019726,7]
[335553350,1724324227580,-500.0,0.00019726,7]
[335553351,1724324227605,-500.0,0.00019726,7]
[335553352,1724324227631,-500.0,0.00019726,7]
[335553353,1724324227656,-602.73,0.00019726,7]
[335553354,1724324227683,-616.23,0.00019726,7]
[335553355,1724324227892,-500.0,0.00019726,7]
[335553356,1724324227919,-412.07046015,0.00019726,7]
[335553357,1724324227945,-800.01,0.00019726,7]
[335553358,1724324227970,-723.02,0.00019726,7]
[335553359,1724324227994,-500.0,0.00019726,7]
[335553360,1724324228019,-500.0,0.00019726,7]
[335553361,1724324228044,-500.0,0.00019726,7]
[335553362,1724324228069,-500.0,0.00019726,7]
[335553363,1724324228094,-500.0,0.00019726,7]
[335553364,1724324228119,-500.0,0.00019726,7]
[335553365,1724324228144,-500.0,0.00019726,7]
[335553366,1724324228169,-697.61,0.00019726,7]
[335553367,1724324228194,-806.75,0.00019726,7]
[335553368,1724324228220,-1872.33,0.00019726,7]
[335553369,1724324228245,-513.92477241,0.00019726,7]
[335553370,1724324228272,-500.0,0.00019726,7]
[335553371,1724324228300,-775.11,0.00019726,7]
[335553372,1724324228327,-500.0,0.00019726,7]
[335553373,1724324228353,-558.44,0.00019726,7]
[335553374,1724324228386,-500.0,0.00019726,7]
[335553375,1724324228411,-869.24,0.00019726,7]
[335553376,1724324228437,-500.0,0.00019726,7]
[335553377,1724324228463,-500.0,0.00019726,7]
[335553378,1724324228491,-3096.63,0.00019726,7]
[335553379,1724324228516,-500.0,0.00019726,7]
[335553380,1724324228543,-1902.33,0.00019726,7]
[335553381,1724324228568,-791.13,0.00019726,7]
[335553382,1724324228594,-500.0,0.00019726,7]
[335553383,1724324228623,-500.0,0.00019726,7]
[335553384,1724324228647,-500.0,0.00019726,7]
[335553385,1724324228671,-500.0,0.00019726,7]
[335553386,1724324228708,-500.0,0.00019726,7]
[335553387,1724324228744,-574.45,0.00019726,7]
[335553388,1724324228780,-500.0,0.00019726,7]
[335553389,1724324228815,-500.0,0.00019726,7]
[335553390,1724324228855,-2089.94,0.00019726,7]
[335553391,1724324228891,-500.0,0.00019726,7]
[335553392,1724324228926,-500.0,0.00019726,7]
[335553393,1724324228962,-500.0,0.00019726,7]
[335553394,1724324228998,-500.0,0.00019726,7]
[335553395,1724324229037,-462.72043515,0.00019726,7]
[335553396,1724324229074,-500.0,0.00019726,7]
[335553397,1724324229108,-689.5,0.00019726,7]
[335553398,1724324229145,-2333.16,0.00019726,7]
[335553399,1724324229181,-500.0,0.00019726,7]
[335553400,1724324229216,-501.4560407,0.00019726,7]
[335553401,1724324229251,-500.0,0.00019726,7]
[335553402,1724324229290,-1011.01,0.00019726,7]
[335553403,1724324229324,-500.0,0.00019726,7]
[335553404,1724324229363,-3043.97,0.00019726,7]
[335553405,1724324229403,-500.0,0.00019726,7]
[335553406,1724324229437,-500.0,0.00019726,7]
[335553407,1724324229474,-500.0,0.00019726,7]
[335553408,1724324229511,-1289.91,0.00019726,7]
[335553409,1724324229549,-707.31,0.00019726,7]
[335553410,1724324229584,-500.0,0.00019726,7]
[335553411,1724324229622,-500.0,0.00019726,7]
[335553412,1724324229657,-500.0,0.00019726,7]
[335553413,1724324229693,-500.0,0.00019726,7]
[335553414,1724324229729,-500.0,0.00019726,7]
[335553415,1724324229765,-3687.12,0.00019726,7]
[335553416,1724324229800,-500.0,0.00019726,7]
[335553417,1724324229835,-500.0,0.00019726,7]
[335553418,1724324229873,-500.0,0.00019726,7]
[335553419,1724324229910,-500.0,0.00019726,7]
[335553420,1724324229949,-10697.38,0.00019726,7]
[335553421,1724324229986,-500.0,0.00019726,7]
[335553422,1724324230023,-4980.64,0.00019726,7]
[335553423,1724324230059,-500.0,0.00019726,7]
[335553424,1724324230092,-500.0,0.00019726,7]
[335553425,1724324230130,-2563.3,0.00019726,7]
[335553426,1724324230166,-9165.06,0.00019726,7]
[335553427,1724324230202,-500.0,0.00019726,7]
[335553428,1724324230240,-551.32,0.00019726,7]
[335553429,1724324230276,-500.0,0.00019726,7]
[335553430,1724324230314,-1075.99,0.00019726,7]
[335553431,1724324230350,-500.0,0.00019726,7]
[335553432,1724324230387,-1052.3,0.00019726,7]
[335553433,1724324230424,-500.0,0.00019726,7]
[335553434,1724324230459,-572.2,0.00019726,7]
[335553435,1724324230498,-500.0,0.00019726,7]
[335553436,1724324230532,-500.0,0.00019726,7]
[335553437,1724324230565,-500.0,0.00019726,7]
[335553438,1724324230598,-500.0,0.00019726,7]
[335553439,1724324230631,-500.0,0.00019726,7]
[335553440,1724324230666,-500.0,0.00019726,7]
[335553441,1724324230706,-500.0,0.00019726,7]
[335553442,1724324230742,-500.0,0.00019726,7]
[335553443,1724324230775,-503.21898862,0.00019726,7]
[335553444,1724324230811,-500.0,0.00019726,7]
[335553445,1724324230846,-536.47,0.00019726,7]
[335553446,1724324230881,-500.0,0.00019726,7]
[335553447,1724324230916,-500.0,0.00019726,7]
[335553448,1724324230951,-502.39760241,0.00019726,7]
[335553449,1724324230988,-19495.74,0.00019726,7]
[335553450,1724324231026,-500.0,0.00019726,7]
[335553451,1724324231063,-500.0,0.00019726,7]
[335553452,1724324231098,-500.0,0.00019726,7]
[335553453,1724324231133,-500.0,0.00019726,7]
[335553454,1724324231168,-500.0,0.00019726,7]
[335553455,1724324231204,-592.4261241,0.00019726,7]
[335553456,1724324231240,-500.0,0.00019726,7]
[335553457,1724324231275,-504.30366329,0.00019726,7]
[335553458,1724324231313,-2437.93,0.00019726,7]
[335553459,1724324231349,-365.81323756,0.00019726,7]
[335553460,1724324231501,-2015.18,0.00019726,7]
[335553461,1724324231567,-500.0,0.00019726,7]
[335553462,1724324231603,-522.41,0.00019726,7]
[335553463,1724324231639,-500.0,0.00019726,7]
[335553464,1724324231674,-500.0,0.00019726,7]
[335553465,1724324231709,-780.01,0.00019726,7]
[335553466,1724324231744,-500.0,0.00019726,7]
[335553467,1724324231779,-500.0,0.00019726,7]
[335553468,1724324231813,-502.90282153,0.00019726,7]
[335553469,1724324231849,-500.0,0.00019726,7]
[335553470,1724324231885,-500.0,0.00019726,7]
[335553471,1724324231921,-503.3019901,0.00019726,7]
[335553472,1724324231958,-990.04,0.00019726,7]
[335553473,1724324231993,-500.0,0.00019726,7]
[335553474,1724324232032,-539.97901393,0.00019726,7]
[335553475,1724324232069,-500.0,0.00019726,7]
[335553476,1724324232105,-500.0,0.00019726,7]
[335553477,1724324232143,-500.0,0.00019726,7]
[335553478,1724324232183,-500.0,0.00019726,7]
[335553479,1724324232220,-521.80847074,0.00019726,7]
[335553480,1724324232259,-557.49,0.00019726,7]
[335553481,1724324232295,-500.0,0.00019726,7]
[335553482,1724324232334,-2416.99,0.00019726,7]
[335553483,1724324232372,-499.7780507,0.00019726,7]
[335553484,1724324232410,-328.68082803,0.00019726,7]
[335553485,1724324232444,-500.0,0.00019726,7]
[335553486,1724324232480,-500.0,0.00019726,7]
[335553487,1724324232514,-500.0,0.00019726,7]
[335553488,1724324232551,-1469.72,0.00019726,7]
[335553489,1724324232587,-500.0,0.00019726,7]
[335553490,1724324232621,-500.0,0.00019726,7]
[335553491,1724324232657,-500.0,0.00019726,7]
[335553492,1724324232693,-500.0,0.00019726,7]
[335553493,1724324232729,-500.0,0.00019726,7]
[335553494,1724324232764,-500.0,0.00019726,7]
[335553495,1724324232802,-500.0,0.00019726,7]
[335553496,1724324232846,-500.0,0.00019726,7]
[335553497,1724324232886,-500.0,0.00019726,7]
[335553498,1724324232926,-500.0,0.00019726,7]
[335553499,1724324232962,-377.24592745,0.00019726,7]
[335553500,1724324233000,-513.62211717,0.00019726,7]
[335553501,1724324233037,-2885.52,0.00019726,7]
[335553502,1724324233074,-500.0,0.00019726,7]
[335553503,1724324233110,-500.0,0.00019726,7]
[335553504,1724324233148,-500.0,0.00019726,7]
[335553505,1724324233184,-2831.04,0.00019726,7]
[335553506,1724324233221,-500.0,0.00019726,7]
[335553507,1724324233258,-5808.53486418,0.0002,20]
[335553508,1724324233294,-1000.0,0.0002,20]
[335553509,1724324233334,-426.29890705,0.0002,20]
[335553510,1724324233376,-500.0,0.00020273,7]
[335553511,1724324233413,-500.0,0.00020273,7]
[335553512,1724324233449,-500.0,0.00020273,7]
[335553513,1724324233485,-229.71420025,0.00020273,7]
[335553514,1724324233524,-541.24831412,0.00020273,7]
[335553515,1724324233558,-500.0,0.00020273,7]
[335553516,1724324233595,-500.0,0.00020273,7]
[335553517,1724324233631,-500.0,0.00020273,7]
[335553518,1724324233667,-500.0,0.00020273,7]
[335553519,1724324233701,-500.0,0.00020273,7]
[335553520,1724324233737,-500.0,0.00020273,7]
[335553521,1724324233773,-500.0,0.00020273,7]
[335553522,1724324233808,-500.0,0.00020273,7]
[335553523,1724324233843,-500.0,0.00020273,7]
[335553524,1724324233882,-500.0,0.00020273,7]
[335553525,1724324233917,-500.0,0.00020273,7]
[335553526,1724324233953,-500.0,0.00020273,7]
[335553527,1724324233987,-500.0,0.00020273,7]
[335553528,1724324234023,-500.0,0.00020273,7]
[335553529,1724324234057,-500.0,0.00020273,7]
[335553530,1724324234094,-616.29266316,0.00020273,7]
[335553531,1724324234130,-500.34307816,0.00020273,7]
[335553532,1724324234164,-580.76130296,0.00020273,7]
[335553533,1724324234199,-500.0,0.00020273,7]
[335553534,1724324234233,-500.0,0.00020273,7]
[335553535,1724324234269,-500.0,0.00020273,7]
[335553536,1724324234306,-676.95,0.00020273,7]
[335553537,1724324234342,-500.0,0.00020273,7]
[335553538,1724324234378,-500.0,0.00020273,7]
[335553539,1724324234413,-500.0,0.00020273,7]
[335553540,1724324234449,-500.0,0.00020273,7]
[335553541,1724324234485,-500.0,0.00020273,7]
[335553542,1724324234520,-500.0,0.00020273,7]
[335553543,1724324234557,-500.0,0.00020273,7]
[335553544,1724324234594,-500.0,0.00020273,7]
[335553545,1724324234633,-500.0,0.00020273,7]
[335553546,1724324234672,-453.88066063,0.00020273,7]
[335553547,1724324234710,-500.0,0.00020273,7]
[335553548,1724324234747,-500.0,0.00020273,7]
[335553549,1724324234785,-500.0,0.00020273,7]
[335553550,1724324234822,-500.0,0.00020273,7]
[335553551,1724324234860,-500.0,0.00020273,7]
[335553552,1724324234901,-500.0,0.00020273,7]
[335553553,1724324234941,-500.0,0.00020273,7]
[335553554,1724324234980,-897.49,0.00020273,7]
[335553555,1724324235018,-500.0,0.00020273,7]
[335553556,1724324235057,-500.0,0.00020273,7]
[335553557,1724324235096,-500.0,0.00020273,7]
[335553558,1724324235134,-500.0,0.00020273,7]
[335553559,1724324235172,-500.0,0.00020273,7]
[335553560,1724324235212,-500.0,0.00020273,7]
[335553561,1724324235251,-500.0,0.00020273,7]
[335553562,1724324235290,-500.0,0.00020273,7]
[335553563,1724324235330,-500.0,0.00020273,7]
[335553564,1724324235369,-500.0,0.00020273,7]
[335553565,1724324235580,-915.75,0.00020273,7]
[335553566,1724324235618,-500.0,0.00020273,7]
[335553567,1724324235657,-536.56,0.00020273,7]
[335553568,1724324235694,-522.49,0.00020273,7]
[335553569,1724324235731,-500.0,0.00020273,7]
[335553570,1724324235770,-500.0,0.00020273,7]
[335553571,1724324235807,-500.0,0.00020273,7]
[335553572,1724324235848,-890.6,0.00020273,7]
[335553573,1724324235886,-500.0,0.00020273,7]
[335553574,1724324235922,-500.0,0.00020273,7]
[335553575,1724324235959,-500.0,0.00020273,7]
[335553576,1724324235996,-500.0,0.00020273,7]
[335553577,1724324236033,-500.0,0.00020273,7]
[335553578,1724324236068,-500.0,0.00020273,7]
[335553579,1724324236103,-500.0,0.00020273,7]
[335553580,1724324236138,-500.0,0.00020273,7]
[335553581,1724324236176,-500.0,0.00020273,7]
[335553582,1724324236213,-500.0,0.00020273,7]
[335553583,1724324236249,-500.0,0.00020273,7]
[335553584,1724324236289,-500.0,0.00020273,7]
[335553585,1724324236330,-500.0,0.00020273,7]
[335553586,1724324236372,-500.0,0.00020273,7]
[335553587,1724324236408,-1411.08,0.00020273,7]
[335553588,1724324236445,-500.0,0.00020273,7]
[335553589,1724324236484,-500.0,0.00020273,7]
[335553590,1724324236521,-500.0,0.00020273,7]
[335553591,1724324236557,-500.0,0.00020273,7]
[335553592,1724324236594,-500.0,0.00020273,7]
[335553593,1724324236629,-500.0,0.00020273,7]
[335553594,1724324236667,-500.0,0.00020273,7]
[335553595,1724324236709,-500.0,0.00020273,7]
[335553596,1724324236751,-1567.48,0.00020273,7]
[335553597,1724324236792,-500.0,0.00020273,7]
[335553598,1724324236834,-500.0,0.00020273,7]
[335553599,1724324236879,-795.06,0.00020273,7]
[335553600,1724324236920,-500.0,0.00020273,7]
[335553601,1724324236959,-500.0,0.00020273,7]
[335553602,1724324236999,-455.1087915,0.00020273,7]
[335553603,1724324237041,-500.0,0.00020273,7]
[335553604,1724324237081,-500.0,0.00020273,7]
[335553605,1724324237122,-500.0,0.00020273,7]
[335553606,1724324237163,-500.0,0.00020273,7]
[335553607,1724324237206,-500.0,0.00020273,7]
[335553608,1724324237249,-500.0,0.00020273,7]
[335553609,1724324237290,-558.34,0.00020273,7]
[335553610,1724324237333,-500.0,0.00020273,7]
[335553611,1724324237374,-500.0,0.00020273,7]
[335553612,1724324237417,-500.0,0.00020273,7]
[335553613,1724324237458,-500.0,0.00020273,7]
[335553614,1724324237496,-500.0,0.00020273,7]
[335553615,1724324237534,-477.72103638,0.00020273,7]
[335553616,1724324237573,-960.82,0.00020273,7]
[335553617,1724324237613,-606.16,0.00020273,7]
[335553618,1724324237653,-508.64650605,0.00020273,7]
[335553619,1724324237693,-500.0,0.00020273,7]
[335553620,1724324237734,-500.0,0.00020273,7]
[335553621,1724324237772,-414.49572389,0.00020273,7]
[335553622,1724324237810,-500.0,0.00020273,7]
[335553623,1724324237851,-500.0,0.00020273,7]
[335553624,1724324237894,-500.0,0.00020273,7]
[335553625,1724324237943,-500.0,0.00020273,7]
[335553626,1724324237985,-1153.42,0.00020273,7]
[335553627,1724324238024,-500.0,0.00020273,7]
[335553628,1724324238066,-763.72,0.00020273,7]
[335553629,1724324238104,-500.0,0.00020273,7]
[335553630,1724324238147,-500.0,0.00020273,7]
[335553631,1724324238189,-500.0,0.00020273,7]
[335553632,1724324238231,-500.0,0.00020273,7]
[335553633,1724324238273,-500.0,0.00020273,7]
[335553634,1724324238318,-500.0,0.00020273,7]
[335553635,1724324238361,-500.0,0.00020273,7]
[335553636,1724324238410,-500.0,0.00020273,7]
[335553637,1724324238451,-500.0,0.00020273,7]
[335553638,1724324238494,-500.0,0.00020273,7]
[335553639,1724324238533,-500.0,0.00020273,7]
[335553640,1724324238574,-500.0,0.00020273,7]
[335553641,1724324238614,-500.0,0.00020273,7]
[335553642,1724324238656,-500.0,0.00020273,7]
[335553643,1724324238695,-516.97603703,0.00020273,7]
[335553644,1724324238736,-500.0,0.00020273,7]
[335553645,1724324238775,-500.0,0.00020273,7]
[335553646,1724324238815,-500.0,0.00020273,7]
[335553647,1724324238853,-500.0,0.00020273,7]
[335553648,1724324238892,-500.0,0.00020273,7]
[335553649,1724324238933,-500.0,0.00020273,7]
[335553650,1724324238971,-500.0,0.00020273,7]
[335553651,1724324239010,-500.0,0.00020273,7]
[335553652,1724324239047,-500.0,0.00020273,7]
[335553653,1724324239085,-500.0,0.00020273,7]
[335553654,1724324239131,-500.0,0.00020273,7]
[335553655,1724324239170,-500.0,0.00020273,7]
[335553656,1724324239206,-600.68,0.00020273,7]
[335553657,1724324239243,-534.87,0.00020273,7]
[335553658,1724324239283,-500.0,0.00020273,7]
[335553659,1724324239324,-500.0,0.00020273,7]
[335553660,1724324239361,-656.62,0.00020273,7]
[335553661,1724324239398,-500.0,0.00020273,7]
[335553662,1724324239436,-500.0,0.00020273,7]
[335553663,1724324239475,-500.0,0.00020273,7]
[335553664,1724324239513,-500.0,0.00020273,7]
[335553665,1724324239550,-504.41456528,0.00020273,7]
[335553666,1724324239590,-500.0,0.00020273,7]
[335553667,1724324239630,-504.15095778,0.00020273,7]
[335553668,1724324239668,-500.0,0.00020273,7]
[335553669,1724324239865,-500.0,0.00020273,7]
[335553670,1724324239911,-1808.0,0.00020273,7]
[335553671,1724324239953,-500.0,0.00020273,7]
[335553672,1724324239992,-500.0,0.00020273,7]
[335553673,1724324240031,-500.0,0.00020273,7]
[335553674,1724324240070,-500.0,0.00020273,7]
[335553675,1724324240107,-503.8,0.00020273,7]
[335553676,1724324240146,-500.0,0.00020273,7]
[335553677,1724324240185,-500.0,0.00020273,7]
[335553678,1724324240223,-500.0,0.00020273,7]
[335553679,1724324240260,-500.0,0.00020273,7]
[335553680,1724324240300,-500.0,0.00020273,7]
[335553681,1724324240343,-500.0,0.00020273,7]
[335553682,1724324240380,-500.0,0.00020273,7]
[335553683,1724324240418,-500.0,0.00020273,7]
[335553684,1724324240459,-500.0,0.00020273,7]
[335553685,1724324240498,-435.6516938,0.00020273,7]
[335553686,1724324240537,-569.65,0.00020273,7]
[335553687,1724324240573,-500.0,0.00020273,7]
[335553688,1724324240610,-500.0,0.00020273,7]
[335553689,1724324240648,-590.42,0.00020273,7]
[335553690,1724324240686,-1688.06,0.00020273,7]
[335553691,1724324240723,-500.0,0.00020273,7]
[335553692,1724324240762,-500.0,0.00020273,7]
[335553693,1724324240798,-500.0,0.00020273,7]
[335553694,1724324240834,-500.0,0.00020273,7]
[335553695,1724324240873,-500.0,0.00020273,7]
[335553696,1724324240909,-666.47,0.00020273,7]
[335553697,1724324240946,-500.0,0.00020273,7]
[335553698,1724324240980,-500.0,0.00020273,7]
[335553699,1724324241016,-1414.31,0.00020273,7]
[335553700,1724324241054,-8750.01,0.00020273,7]
[335553701,1724324241089,-500.0,0.00020273,7]
[335553702,1724324241125,-500.0,0.00020273,7]
[335553703,1724324241160,-500.0,0.00020273,7]
[335553704,1724324241196,-500.0,0.00020273,7]
[335553705,1724324241232,-602.73,0.00020273,7]
[335553706,1724324241269,-616.23,0.00020273,7]
[335553707,1724324241306,-500.0,0.00020273,7]
[335553708,1724324241346,-800.01,0.00020273,7]
[335553709,1724324241384,-723.02,0.00020273,7]
[335553710,1724324241420,-503.98871958,0.00020273,7]
[335553711,1724324241456,-500.0,0.00020273,7]
[335553712,1724324241493,-500.0,0.00020273,7]
[335553713,1724324241528,-500.0,0.00020273,7]
[335553714,1724324241565,-500.0,0.00020273,7]
[335553715,1724324241601,-500.0,0.00020273,7]
[335553716,1724324241635,-500.0,0.00020273,7]
[335553717,1724324241671,-697.61,0.00020273,7]
[335553718,1724324241706,-806.75,0.00020273,7]
[335553719,1724324241742,-1872.33,0.00020273,7]
[335553720,1724324241777,-500.0,0.00020273,7]
[335553721,1724324241813,-775.11,0.00020273,7]
[335553722,1724324241848,-500.0,0.00020273,7]
[335553723,1724324241885,-558.44,0.00020273,7]
[335553724,1724324241923,-500.0,0.00020273,7]
[335553725,1724324241960,-869.24,0.00020273,7]
[335553726,1724324241995,-500.0,0.00020273,7]
[335553727,1724324242031,-500.0,0.00020273,7]
[335553728,1724324242070,-3096.63,0.00020273,7]
[335553729,1724324242105,-500.0,0.00020273,7]
[335553730,1724324242140,-1902.33,0.00020273,7]
[335553731,1724324242177,-791.13,0.00020273,7]
[335553732,1724324242212,-500.0,0.00020273,7]
[335553733,1724324242250,-500.0,0.00020273,7]
[335553734,1724324242287,-500.0,0.00020273,7]
[335553735,1724324242324,-500.0,0.00020273,7]
[335553736,1724324242361,-500.0,0.00020273,7]
[335553737,1724324242398,-574.45,0.00020273,7]
[335553738,1724324242434,-500.0,0.00020273,7]
[335553739,1724324242470,-500.0,0.00020273,7]
[335553740,1724324242505,-2089.94,0.00020273,7]
[335553741,1724324242541,-500.0,0.00020273,7]
[335553742,1724324242578,-500.0,0.00020273,7]
[335553743,1724324242613,-500.0,0.00020273,7]
[335553744,1724324242648,-500.0,0.00020273,7]
[335553745,1724324242683,-500.0,0.00020273,7]
[335553746,1724324242720,-689.5,0.00020273,7]
[335553747,1724324242759,-2333.16,0.00020273,7]
[335553748,1724324242797,-500.0,0.00020273,7]
[335553749,1724324242832,-500.0,0.00020273,7]
[335553750,1724324242869,-1011.01,0.00020273,7]
[335553751,1724324242907,-500.0,0.00020273,7]
[335553752,1724324242945,-3043.97,0.00020273,7]
[335553753,1724324242982,-500.0,0.00020273,7]
[335553754,1724324243018,-500.0,0.00020273,7]
[335553755,1724324243054,-500.0,0.00020273,7]
[335553756,1724324243091,-1289.91,0.00020273,7]
[335553757,1724324243127,-707.31,0.00020273,7]
[335553758,1724324243164,-500.0,0.00020273,7]
[335553759,1724324243204,-500.0,0.00020273,7]
[335553760,1724324243240,-500.0,0.00020273,7]
[335553761,1724324243281,-500.0,0.00020273,7]
[335553762,1724324243324,-500.0,0.00020273,7]
[335553764,1724324243363,-3687.12,0.00020273,7]
[335553766,1724324243407,-500.0,0.00020273,7]
[335553768,1724324243444,-500.0,0.00020273,7]
[335553770,1724324243481,-500.0,0.00020273,7]
[335553772,1724324243521,-327.4649993,0.00020273,7]
[335553774,1724324243561,-10697.38,0.00020273,7]
[335553775,1724324243596,-500.0,0.00020273,7]
[335553776,1724324243632,-4980.64,0.00020273,7]
[335553777,1724324243667,-500.0,0.00020273,7]
[335553778,1724324243702,-2563.3,0.00020273,7]
[335553779,1724324243899,-9165.06,0.00020273,7]
[335553780,1724324243937,-500.0,0.00020273,7]
[335553781,1724324243976,-551.32,0.00020273,7]
[335553782,1724324244012,-500.0,0.00020273,7]
[335553783,1724324244050,-1075.99,0.00020273,7]
[335553784,1724324244087,-500.0,0.00020273,7]
[335553785,1724324244126,-1052.3,0.00020273,7]
[335553786,1724324244165,-500.0,0.00020273,7]
[335553787,1724324244203,-572.2,0.00020273,7]
[335553788,1724324244239,-500.0,0.00020273,7]
[335553789,1724324244278,-500.0,0.00020273,7]
[335553790,1724324244319,-500.0,0.00020273,7]
[335553791,1724324244356,-500.0,0.00020273,7]
[335553792,1724324244393,-500.0,0.00020273,7]
[335553793,1724324244430,-500.0,0.00020273,7]
[335553794,1724324244467,-500.0,0.00020273,7]
[335553795,1724324244505,-500.0,0.00020273,7]
[335553796,1724324244544,-500.0,0.00020273,7]
[335553797,1724324244581,-536.47,0.00020273,7]
[335553798,1724324244619,-500.0,0.00020273,7]
[335553799,1724324244658,-500.0,0.00020273,7]
[335553800,1724324244695,-19495.74,0.00020273,7]
[335553801,1724324244732,-500.0,0.00020273,7]
[335553802,1724324244769,-500.0,0.00020273,7]
[335553803,1724324244809,-500.0,0.00020273,7]
[335553804,1724324244847,-500.0,0.00020273,7]
[335553805,1724324244885,-500.0,0.00020273,7]
[335553806,1724324244930,-500.0,0.00020273,7]
[335553807,1724324244972,-2437.93,0.00020273,7]
[335553808,1724324245011,-2015.18,0.00020273,7]
[335553809,1724324245048,-500.0,0.00020273,7]
[335553810,1724324245087,-522.41,0.00020273,7]
[335553811,1724324245141,-500.0,0.00020273,7]
[335553812,1724324245180,-500.0,0.00020273,7]
[335553813,1724324245218,-780.01,0.00020273,7]
[335553814,1724324245258,-500.0,0.00020273,7]